bitfinex-derivatives/quotes_SOLF0:USTF0_20250318
["timestamp","ask_amount","ask_price","bid_price","bid_amount"]
[1742295821077,8.0314,124.52,124.5,23.47322517]
[1742295821375,28.89361258,124.53,124.5,15.44092517]
[1742295821776,36.92471258,124.53,124.51,8.0321]
[1742295826075,36.92471258,124.53,124.5,23.47332517]
[1742295826277,28.89361258,124.53,124.5,2.07096601]
[1742295826580,13.36995916,124.52,124.5,0.05686601]
[1742295826781,42.20995916,124.51,124.5,0.05686601]
[1742295827285,50.24205916,124.51,124.5,0.05686601]
[1742295830986,28.84,124.51,124.5,0.05686601]
[1742295831484,28.84,124.51,124.5,8.08956601]
[1742295832182,28.91361258,124.53,124.51,8.0315]
[1742295832580,36.94461258,124.53,124.51,8.0315]
[1742295833893,36.94461258,124.53,124.5,8.08916601]
[1742295834095,42.28357174,124.53,124.5,0.05686601]
[1742295834591,8.0321,124.51,124.5,0.05686601]
[1742295834889,36.8721,124.51,124.5,0.05686601]
[1742295836295,50.24205916,124.51,124.5,0.05686601]
[1742295843003,8.0344,124.48,124.46,2.0007]
[1742295843199,50.26435916,124.48,124.46,2.0007]
[1742295844398,50.32479326,124.48,124.46,2.06033298]
[1742295844607,8.0347,124.47,124.46,2.06033298]
[1742295845103,8.0347,124.47,124.46,0.05963298]
[1742295847102,21.40465916,124.47,124.46,0.05963298]
[1742295849406,50.32469326,124.48,124.46,0.05963298]
[1742295851003,8.0347,124.47,124.46,0.05963298]
[1742295851401,21.40465916,124.47,124.46,0.05963298]
[1742295859021,8.0347,124.47,124.46,0.05963298]
[1742295859223,21.40465916,124.47,124.46,0.05963298]
[1742295861525,13.36995916,124.47,124.4,6.1963]
[1742295861825,13.36995916,124.43,124.4,4.177]
[1742295862016,50.26795916,124.42,124.4,4.177]
[1742295862323,50.26795916,124.42,124.4,2.0187]
[1742295862618,50.26795916,124.42,124.4,2.07260655]
[1742295862923,50.3284674,124.42,124.4,2.07260655]
[1742295863622,50.3284674,124.42,124.4,10.11160655]
[1742295863825,42.2904674,124.42,124.4,10.11160655]
[1742295864023,28.92050824,124.42,124.4,2.07260655]
[1742295864219,28.92050824,124.42,124.41,8.0385]
[1742295867126,28.92050824,124.42,124.4,2.07260655]
[1742295867625,36.95870824,124.42,124.4,2.07260655]
[1742295867830,36.95870824,124.42,124.4,10.11130655]
[1742295868830,28.92050824,124.42,124.41,8.0385]
[1742295869727,36.95840824,124.42,124.4,10.11140655]
[1742295870231,21.40845916,124.41,124.4,0.05390655]
[1742295896958,13.36995916,124.41,124.35,2.1326]
[1742295897147,6.68497958,124.36,124.33,2.0032]
[1742295897349,13.36995916,124.36,124.33,2.0032]
[1742295898055,13.42074451,124.36,124.33,2.06288773]
[1742295898258,13.42074451,124.36,124.33,10.10628773]
[1742295898852,21.46294451,124.36,124.33,10.10628773]
[1742295899365,8.0425,124.35,124.33,2.06288773]
[1742295899559,21.41245916,124.35,124.33,2.06288773]
[1742295899757,50.27245916,124.35,124.33,2.06288773]
[1742295900460,8.0431,124.34,124.33,2.06288773]
[1742295901760,8.0431,124.34,124.33,0.05968773]
[1742295901956,21.41305916,124.34,124.33,0.05968773]
[1742295904256,8.0447,124.32,124.27,280.91315916]
[1742295904459,28.86,124.31,124.27,265.38]
[1742295904851,28.86,124.31,124.28,8.0465]
[1742295905055,28.86,124.31,124.27,265.38]
[1742295905363,28.86,124.31,124.29,8.046]
[1742295905663,0.05330755,124.3,124.29,8.046]
[1742295906870,28.86,124.33,124.32,8.044]
[1742295907362,13.36995916,124.35,124.33,8.0433]
[1742295907559,42.22995916,124.35,124.31,2.1556]
[1742295907955,50.27235916,124.35,124.32,8.0442]
[1742295908261,13.36995916,124.33,124.32,0.0588458]
[1742295908462,50.27365916,124.33,124.32,0.0588458]
[1742295910062,42.22995916,124.33,124.32,0.0588458]
[1742295910365,28.86,124.33,124.32,0.0588458]
[1742295910764,42.22995916,124.33,124.32,0.0588458]
[1742295911772,50.27365916,124.33,124.32,0.0588458]
[1742295917685,21.41365916,124.33,124.32,0.0588458]
[1742295917885,42.2914492,124.34,124.32,8.1032458]
[1742295918986,42.2914492,124.34,124.32,0.0588458]
[1742295919386,13.36995916,124.33,124.32,8.1032458]
[1742295919588,42.2914492,124.34,124.32,8.1032458]
[1742295919789,42.2914492,124.34,124.32,0.0588458]
[1742295920186,21.41365916,124.33,124.32,0.0588458]
[1742295922288,13.36995916,124.33,124.32,8.1032458]
[1742295922490,21.4748492,124.34,124.32,8.1032458]
[1742295922689,42.2914492,124.34,124.32,0.0588458]
[1742295922889,8.0437,124.33,124.32,0.0588458]
[1742295924287,50.3348492,124.34,124.32,8.1029458]
[1742295925494,8.0437,124.33,124.32,0.0588458]
[1742295925992,50.3348492,124.34,124.32,0.0588458]
[1742295926187,42.2914492,124.34,124.32,0.0588458]
[1742295926594,8.0437,124.33,124.32,0.0588458]
[1742295930998,50.3349492,124.34,124.32,8.1027458]
[1742295931190,0.06149004,124.34,124.32,0.0588458]
[1742295931399,14.22307373,124.4,124.33,13.36995916]
[1742295931594,8.0407,124.38,124.35,8.0419]
[1742295931997,8.0407,124.38,124.33,15.57515916]
[1742295932695,0.06139054,124.37,124.34,0.05240973]
[1742295932900,0.06139054,124.37,124.35,13.36995916]
[1742295933200,0.06139054,124.37,124.34,28.91240973]
[1742295933402,0.06139054,124.37,124.34,42.28236889]
[1742295933597,0.06139054,124.37,124.36,8.0418]
[1742295933995,0.06139054,124.37,124.34,42.28236889]
[1742295934201,13.4313497,124.37,124.34,8.09510973]
[1742295935502,13.36995916,124.35,124.34,0.05240973]
[1742295936003,42.22995916,124.36,124.34,0.05240973]
[1742295936397,50.27225916,124.36,124.34,0.05240973]
[1742295936899,8.0424,124.35,124.34,0.05240973]
[1742295938499,50.27205916,124.36,124.34,0.05240973]
[1742295938907,42.22995916,124.36,124.34,0.05240973]
[1742295939703,50.27205916,124.36,124.34,8.09540973]
[1742295941002,42.22995916,124.36,124.34,8.09540973]
[1742295942309,50.27205916,124.36,124.34,8.09540973]
[1742295943198,50.27205916,124.36,124.34,0.05240973]
[1742295943404,8.0424,124.35,124.34,0.05240973]
[1742295949403,13.36995916,124.36,124.34,0.05240973]
[1742295949715,0.06139054,124.37,124.34,0.05240973]
[1742295950214,8.10279054,124.37,124.34,0.05240973]
[1742295950415,0.06139054,124.37,124.34,0.05240973]
[1742295950719,8.042,124.36,124.34,8.09520973]
[1742295951504,8.042,124.36,124.34,0.05240973]
[1742295951709,13.36995916,124.36,124.34,0.05240973]
[1742295951909,42.22995916,124.36,124.34,0.05240973]
[1742295952205,8.0424,124.35,124.34,0.05240973]
[1742295957813,13.36995916,124.35,124.27,13.36995916]
[1742295958026,13.36995916,124.31,124.27,13.36995916]
[1742295958215,42.22995916,124.32,124.26,42.22995916]
[1742295958410,8.0453,124.31,124.29,8.0462]
[1742295958815,8.0453,124.31,124.27,13.36995916]
[1742295959019,8.10579801,124.31,124.29,0.0572699]
[1742295960120,0.06049801,124.31,124.29,8.1035699]
[1742295961021,8.10559801,124.31,124.29,0.0572699]
[1742295961220,0.06049801,124.31,124.29,0.0572699]
[1742295961622,8.0456,124.3,124.29,0.0572699]
[1742295962217,8.10579801,124.31,124.29,0.0572699]
[1742295962817,8.10579801,124.31,124.29,8.1034699]
[1742295963222,8.10579801,124.31,124.29,0.0572699]
[1742295964023,8.10579801,124.31,124.29,8.1034699]
[1742295964525,0.06049801,124.31,124.3,8.0456]
[1742295965822,0.06049801,124.31,124.29,8.1031699]
[1742295966225,8.10549801,124.31,124.29,8.1031699]
[1742295967824,0.06049801,124.31,124.3,8.0456]
[1742295970129,0.06049801,124.31,124.29,10.1453699]
[1742295970329,0.06049801,124.31,124.29,2.0994699]
[1742295971431,0.06049801,124.31,124.3,8.0456]
[1742295971831,0.06049801,124.31,124.29,2.0994699]
[1742295972025,0.06049801,124.31,124.29,10.1454699]
[1742295972523,8.10579801,124.31,124.29,10.1454699]
[1742295972929,13.36995916,124.3,124.29,0.0572699]
[1742295973230,21.41555916,124.3,124.29,0.0572699]
[1742295980034,13.36995916,124.3,124.22,88.83218488]
[1742295980235,13.36995916,124.26,124.23,8.05]
[1742295980635,21.41845916,124.26,124.23,8.05]
[1742295981141,8.0492,124.25,124.23,0.05719896]
[1742295981540,21.41915916,124.25,124.23,0.05719896]
[1742295982041,13.36995916,124.25,124.23,8.10739896]
[1742295983740,13.36995916,124.25,124.24,8.0495]
[1742295983939,13.43054788,124.26,124.24,8.0495]
[1742295984342,0.06058872,124.26,124.24,8.0495]
[1742295986145,8.10888872,124.26,124.24,8.0495]
[1742295986345,21.47884788,124.26,124.24,8.0495]
[1742295987348,13.43054788,124.26,124.24,8.0495]
[1742295988245,42.22995916,124.25,124.23,0.05719896]
[1742295988450,21.41945916,124.24,124.23,0.05719896]
[1742295989850,13.36995916,124.24,124.23,0.05719896]
[1742295990645,21.41945916,124.24,124.23,0.05719896]
[1742295991447,13.36995916,124.24,124.23,8.10739896]
[1742295992751,21.41945916,124.24,124.23,0.05719896]
[1742295993451,8.0495,124.24,124.23,0.05719896]
[1742295994254,21.41945916,124.24,124.23,0.05719896]
[1742295997350,21.41945916,124.24,124.23,0.05719896]
[1742296001663,43.59417958,124.25,124.23,0.05719896]
[1742296001856,42.22995916,124.25,124.23,0.05719896]
[1742296002450,8.0495,124.24,124.23,0.05719896]
[1742296002662,21.41945916,124.24,124.23,0.05719896]
[1742296012659,21.41945916,124.24,124.23,9.896e-05]
[1742296012860,13.36995916,124.24,124.14,31.0767]
[1742296013059,13.36995916,124.21,124.15,13.36995916]
[1742296013254,8.0524,124.2,124.15,13.36995916]
[1742296013465,42.22995916,124.21,124.15,42.22995916]
[1742296013860,0.05621954,124.19,124.17,0.06143799]
[1742296014063,28.91621954,124.19,124.17,0.06143799]
[1742296014265,0.05621954,124.19,124.17,0.06143799]
[1742296014464,8.10931954,124.19,124.17,0.06143799]
[1742296014859,0.05621954,124.19,124.17,0.06143799]
[1742296015465,8.10941954,124.19,124.17,0.06143799]
[1742296015968,0.05621954,124.19,124.17,0.06143799]
[1742296016167,8.0534,124.18,124.17,0.06143799]
[1742296019771,21.42335916,124.18,124.17,0.06143799]
[1742296023571,21.42335916,124.18,124.14,2.2167]
[1742296023572,21.42995916,124.18,124.08,265.74]
[1742296023763,13.36995916,124.13,124.09,14.84926136]
[1742296023964,42.24995916,124.13,124.11,8.0577]
[1742296024169,28.88,124.13,124.09,13.36995916]
[1742296024470,28.88,124.15,124.11,13.36995916]
[1742296024671,0.05928255,124.12,124.11,13.36995916]
[1742296025070,0.05928255,124.12,124.11,21.42795916]
[1742296025977,0.05928255,124.12,124.11,8.058]
[1742296026570,0.05928255,124.12,124.1,13.42331653]
[1742296026775,0.05928255,124.12,124.1,21.48161653]
[1742296026979,0.05928255,124.12,124.1,13.42331653]
[1742296027371,0.05928255,124.12,124.11,8.058]
[1742296028079,0.05928255,124.12,124.1,21.48161653]
[1742296028982,8.11708255,124.12,124.1,0.05335737]
[1742296029278,0.05928255,124.12,124.1,1.53263329]
[1742296029478,0.05928255,124.12,124.1,0.05335737]
[1742296029676,0.05928255,124.12,124.1,1.5326731]
[1742296029875,5.27593896,124.11,124.1,1.5326731]
[1742296030078,11.09393442,124.11,124.1,1.5326731]
[1742296030273,5.27593896,124.11,124.1,1.5326731]
[1742296030479,5.27593896,124.11,124.1,9.5908731]
[1742296030683,5.27593896,124.11,124.1,22.96083226]
[1742296030873,0.05928255,124.12,124.11,8.058]
[1742296031280,5.87500315,124.12,124.11,8.058]
[1742296032179,0.05928255,124.12,124.11,8.058]
[1742296033275,6.74426213,124.12,124.1,0.05335737]
[1742296033481,5.8138723,124.11,124.1,0.05335737]
[1742296033680,5.81385773,124.11,124.1,0.05335737]
[1742296033880,0.05928255,124.12,124.11,8.058]
[1742296034076,5.87268625,124.12,124.11,8.058]
[1742296034273,28.88,124.16,124.11,13.36995916]
[1742296034474,42.24995916,124.16,124.14,8.0556]
[1742296035484,42.30955181,124.16,124.14,8.11148702]
[1742296035881,13.42955181,124.16,124.14,8.11148702]
[1742296036187,21.48435181,124.16,124.14,8.11148702]
[1742296036886,13.42955181,124.16,124.14,8.11148702]
[1742296037385,13.36995916,124.15,124.14,0.05588702]
[1742296037685,42.24995916,124.15,124.14,0.05588702]
[1742296037985,50.30535916,124.15,124.14,0.05588702]
[1742296041485,0.05959265,124.16,124.15,8.0554]
[1742296041684,0.05959265,124.16,124.14,0.05588702]
[1742296041877,0.05959265,124.16,124.14,13.42584618]
[1742296042082,0.05959265,124.16,124.15,8.0554]
[1742296042795,13.36995916,124.2,124.18,8.0529]
[1742296043087,42.24995916,124.2,124.15,13.36995916]
[1742296043280,5.44393901,124.19,124.15,42.24995916]
[1742296043683,5.44393901,124.19,124.18,8.0534]
[1742296043982,50.30215916,124.2,124.18,8.0534]
[1742296044285,5.44464772,124.19,124.17,8.1058608]
[1742296044883,5.44464772,124.18,124.17,8.1058608]
[1742296046288,11.13604476,124.18,124.17,8.1058608]
[1742296048989,11.13883231,124.18,124.17,8.1058608]
[1742296051300,5.44464772,124.18,124.17,50.35581996]
[1742296051494,2.11724772,124.18,124.17,54.53191996]
[1742296051692,0.0600947,124.2,124.19,8.0528]
[1742296051895,50.29855916,124.26,124.19,42.24995916]
[1742296052099,5.69428314,124.25,124.21,13.36995916]
[1742296052302,5.69428314,124.24,124.21,13.36995916]
[1742296052492,5.6943688,124.23,124.21,13.36995916]
[1742296052698,42.24995916,124.26,124.21,13.36995916]
[1742296052902,5.69342712,124.25,124.23,8.0498]
[1742296053101,5.69342712,124.24,124.23,8.0498]
[1742296054202,8.10775892,124.25,124.23,8.0498]
[1742296054404,5.69343533,124.24,124.22,8.11072563]
[1742296054605,5.69343533,124.23,124.22,8.11072563]
[1742296056094,5.69067942,124.23,124.22,8.11072563]
[1742296057506,0.05885892,124.25,124.23,8.0501]
[1742296057704,5.68876094,124.24,124.23,8.0501]
[1742296058205,5.68876094,124.24,124.22,8.11082563]
[1742296058405,5.68886246,124.23,124.22,8.11082563]
[1742296058811,5.68886246,124.23,124.22,0.06032563]
[1742296059700,8.0499,124.24,124.22,0.06032563]
[1742296060006,5.68618345,124.23,124.22,0.06032563]
[1742296060201,27.10634261,124.23,124.22,0.06032563]
[1742296060396,19.05614261,124.23,124.17,265.78]
[1742296060599,13.36995916,124.2,124.17,265.78]
[1742296060795,8.0529,124.19,124.17,273.8337]
[1742296061401,0.05372855,124.19,124.17,265.83411257]
[1742296061603,0.05372855,124.19,124.18,13.36995916]
[1742296061908,0.05372855,124.19,124.18,21.42335916]
[1742296062108,0.05372855,124.19,124.18,50.28335916]
[1742296064111,5.4272514,124.19,124.18,50.28335916]
[1742296065911,0.05372855,124.19,124.18,50.28335916]
[1742296067312,2.855e-05,124.19,124.18,50.28335916]
[1742296069411,5.68507788,124.21,124.18,50.28995916]
[1742296069604,5.68507788,124.21,124.2,13.36995916]
[1742296069806,5.68507788,124.21,124.2,50.28205916]
[1742296071213,14.23472348,124.3,124.21,16.103]
[1742296071405,14.23472348,124.3,124.25,13.36995916]
[1742296071611,11.35474527,124.29,124.25,42.22995916]
[1742296071813,11.35474527,124.29,124.28,8.0465]
[1742296072311,16.71961974,124.29,124.28,8.0465]
[1742296073514,11.0422471,124.29,124.27,8.10177027]
[1742296074014,11.0422471,124.29,124.27,0.05447027]
[1742296074414,11.0422471,124.29,124.28,8.0469]
[1742296074918,11.0422471,124.29,124.28,21.41685916]
[1742296075115,11.0422471,124.29,124.28,8.0469]
[1742296076216,11.0422471,124.29,124.27,28.91447027]
[1742296076816,11.0422471,124.29,124.27,36.96167027]
[1742296077817,5.67737263,124.29,124.27,36.96167027]
[1742296078816,5.67737263,124.29,124.27,0.05447027]
[1742296079421,8.0469,124.28,124.27,0.05447027]
[1742296081720,13.72397263,124.29,124.27,0.05447027]
[1742296082422,13.72397263,124.29,124.27,8.10197027]
[1742296082621,5.67737263,124.29,124.27,8.10197027]
[1742296082823,5.67737263,124.29,124.27,0.05447027]
[1742296083020,5.67737263,124.29,124.28,8.0469]
[1742296083224,11.25542241,124.29,124.28,8.0469]
[1742296083427,5.67737263,124.29,124.28,8.0469]
[1742296087128,11.03959565,124.29,124.28,8.0469]
[1742296091233,5.67737263,124.29,124.28,8.0469]
[1742296092226,11.04269363,124.29,124.28,8.0469]
[1742296093830,5.67737263,124.29,124.28,8.0469]
[1742296094739,11.04583275,124.29,124.28,8.0469]
[1742296101640,11.04583275,124.29,124.28,21.41685916]
[1742296107547,42.20995916,124.35,124.31,8.0444]
[1742296108045,50.25265916,124.35,124.3,13.36995916]
[1742296108440,50.25265916,124.35,124.31,8.0447]
[1742296108640,0.0530376,124.34,124.31,8.10158964]
[1742296108840,13.42299676,124.34,124.31,0.05688964]
[1742296109040,15.49749676,124.34,124.31,0.05688964]
[1742296109244,8.0442,124.33,124.31,0.05688964]
[1742296109746,15.49749676,124.34,124.31,0.05688964]
[1742296109947,8.0444,124.32,124.31,0.05688964]
[1742296110647,38.9724,124.33,124.31,0.05688964]
[1742296112344,30.9283,124.33,124.31,0.05688964]
[1742296112851,2.1275376,124.34,124.31,0.05688964]
[1742296113050,2.1275376,124.34,124.32,8.0444]
[1742296113545,2.1275376,124.34,124.31,13.4268488]
[1742296113855,0.0530376,124.34,124.33,8.0437]
[1742296118459,0.0530376,124.34,124.32,36.8841]
[1742296119261,0.0530376,124.34,124.33,8.0437]
[1742296119561,5.38218631,124.34,124.33,8.0437]
[1742296122062,5.38218631,124.34,124.32,36.884]
[1742296122565,5.32914871,124.33,124.32,8.044]
[1742296123265,5.32914871,124.33,124.31,0.05688964]
[1742296123666,13.37354871,124.32,124.31,0.05688964]
[1742296124061,13.37354871,124.32,124.27,327.45353236]
[1742296124062,18.69910787,124.32,124.27,338.75959152]
[1742296124257,8.046,124.3,124.27,325.38963236]
[1742296124765,5.32914871,124.29,124.27,333.43683236]
[1742296124965,13.37554871,124.29,124.27,333.43683236]
[1742296125264,5.32914871,124.28,124.27,333.43683236]
[1742296125459,5.32914871,124.28,124.27,0.05385032]
[1742296125660,13.37604871,124.28,124.27,0.05385032]
[1742296128968,26.74600787,124.28,124.27,0.05385032]
[1742296129170,13.37604871,124.28,124.27,0.05385032]
[1742296131374,5.32914871,124.28,124.27,0.05385032]
[1742296131768,5.32880643,124.28,124.27,0.05385032]
[1742296131969,5.32880643,124.28,124.27,8.10115032]
[1742296134271,5.32880643,124.28,124.27,36.94115032]
[1742296134471,5.32880643,124.28,124.27,0.05385032]
[1742296136372,5.32880643,124.28,124.27,8.10145032]
[1742296137378,5.32880643,124.28,124.27,0.05385032]
[1742296137579,8.10286926,124.29,124.27,0.05385032]
[1742296137779,5.32692739,124.28,124.27,0.05385032]
[1742296138376,5.32692739,124.28,124.27,8.10145032]
[1742296142986,5.32692739,124.28,124.27,36.94145032]
[1742296145383,2.739e-05,124.28,124.27,50.31140948]
[1742296145585,46.52635916,124.36,124.27,50.30380948]
[1742296145781,46.52635916,124.36,124.3,13.36995916]
[1742296145983,54.56845916,124.36,124.33,8.0433]
[1742296146681,2.09637969,124.35,124.33,0.05136659]
[1742296147382,0.05747969,124.35,124.34,8.0431]
[1742296149685,0.05747969,124.35,124.34,21.41305916]
[1742296149896,0.05747969,124.35,124.34,50.23305916]
[1742296151383,8.0395,124.4,124.38,8.0402]
[1742296151591,32.9014,124.41,124.36,13.36995916]
[1742296151785,4.0814,124.41,124.37,28.82]
[1742296152087,12.1199,124.41,124.37,28.82]
[1742296152483,12.1199,124.41,124.39,8.0398]
[1742296152681,0.05314267,124.4,124.39,8.0398]
[1742296154187,0.05314267,124.4,124.38,8.09503485]
[1742296155191,8.09254267,124.4,124.38,8.09503485]
[1742296155393,0.05314267,124.4,124.38,0.05493485]
[1742296156092,8.0398,124.39,124.38,0.05493485]
[1742296162004,8.09244267,124.4,124.38,0.05493485]
[1742296162899,8.09244267,124.4,124.38,8.09503485]
[1742296163098,0.05314267,124.4,124.38,13.42489401]
[1742296163499,0.05314267,124.4,124.39,8.0398]
[1742296164105,0.05314267,124.4,124.38,13.42489401]
[1742296164809,8.09264267,124.4,124.38,13.42489401]
[1742296165206,42.16995916,124.39,124.31,354.08725518]
[1742296165508,13.36995916,124.36,124.32,8.044]
[1742296165804,13.36995916,124.36,124.31,333.33185518]
[1742296166004,13.36995916,124.36,124.31,273.4046]
[1742296166208,13.36995916,124.34,124.31,265.36]
[1742296166403,13.36995916,124.34,124.3,42.16995916]
[1742296166404,8.0449,124.32,124.3,42.16995916]
[1742296166610,8.0449,124.32,124.31,0.05218741]
[1742296166807,8.09791532,124.32,124.31,0.05218741]
[1742296167508,0.05301532,124.32,124.31,0.05218741]
[1742296168206,0.05301532,124.32,124.31,8.09718741]
[1742296176919,0.05301532,124.32,124.31,0.05218741]
[1742296177315,13.42297448,124.32,124.27,265.36]
[1742296177517,13.36995916,124.31,124.27,273.4072]
[1742296178017,42.18995916,124.31,124.27,273.4072]
[1742296178221,8.0458,124.3,124.27,273.4072]
[1742296178521,42.18995916,124.31,124.27,273.46353674]
[1742296178720,8.0462,124.3,124.27,273.46353674]
[1742296180321,8.0462,124.3,124.28,8.0468]
[1742296180723,50.23525916,124.31,124.27,265.41633674]
[1742296180920,50.23525916,124.31,124.28,8.0468]
[1742296181118,50.23525916,124.31,124.27,265.41633674]
[1742296181825,50.23525916,124.31,124.29,8.046]
[1742296182328,8.0457,124.3,124.28,8.0467]
[1742296182626,8.0457,124.3,124.27,265.41633674]
[1742296182825,42.18995916,124.31,124.27,0.05633674]
[1742296183019,13.36995916,124.29,124.27,0.05633674]
[1742296183525,13.42737178,124.29,124.27,0.05633674]
[1742296184433,8.0469,124.28,124.27,0.05633674]
[1742296186223,8.0469,124.28,124.21,102.15813488]
[1742296186224,13.36995916,124.28,124.21,102.15813488]
[1742296186425,13.36995916,124.26,124.21,102.15813488]
[1742296187427,13.36995916,124.26,124.22,8.10179887]
[1742296187428,0.05396721,124.25,124.22,8.10179887]
[1742296187928,8.10316721,124.25,124.22,8.10179887]
[1742296188428,0.05396721,124.25,124.22,0.05139887]
[1742296188627,0.05396721,124.25,124.22,28.87139887]
[1742296188824,0.05396721,124.25,124.24,8.0495]
[1742296190525,0.05396721,124.25,124.24,21.41945916]
[1742296190725,0.05396721,124.25,124.24,50.23945916]
[1742296196832,39.0087,124.31,124.29,8.0462]
[1742296197229,30.9634,124.31,124.29,8.0462]
[1742296197936,31.01889167,124.31,124.29,8.10572995]
[1742296198733,39.06389167,124.31,124.29,8.10572995]
[1742296199133,39.06389167,124.31,124.29,0.05952995]
[1742296200641,31.01889167,124.31,124.29,8.10582995]
[1742296200835,31.01889167,124.31,124.29,0.05952995]
[1742296201035,31.01889167,124.31,124.3,8.0456]
[1742296201440,2.19889167,124.31,124.3,8.0456]
[1742296201943,0.05549167,124.31,124.3,21.41555916]
[1742296202539,0.05549167,124.31,124.3,50.23555916]
[1742296205638,560.0,124.3,124.19,133.80346463]
[1742296205942,13.36995916,124.22,124.19,133.80346463]
[1742296206141,37.5515,124.21,124.19,133.80346463]
[1742296206846,37.5515,124.21,124.19,133.86279106]
[1742296207241,45.6115,124.21,124.2,1.65304066]
[1742296207545,8.0521,124.2,124.19,133.86279106]
[1742296207743,21.42205916,124.2,124.19,133.86279106]
[1742296207939,21.42205916,124.2,124.19,0.05932643]
[1742296209243,29.07792116,124.2,124.19,0.05932643]
[1742296210047,8.0532,124.19,124.1,29.08432116]
[1742296210247,29.48,124.18,124.1,21.02582116]
[1742296210447,50.50582116,124.18,124.1,21.02582116]
[1742296210843,58.55962116,124.18,124.1,21.02582116]
[1742296211245,0.05895337,124.16,124.14,0.05626369]
[1742296211445,29.46,124.15,124.14,0.05626369]
[1742296220051,29.46,124.15,124.14,8.11226369]
[1742296220257,0.05895337,124.16,124.14,8.11226369]
[1742296220657,29.34,124.19,124.16,8.0547]
[1742296220957,29.34,124.19,124.12,56.64902116]
[1742296221658,0.05670876,124.17,124.14,8.11293732]
[1742296222457,0.05670876,124.17,124.15,8.0553]
[1742296222659,0.05670876,124.17,124.14,0.05723732]
[1742296222863,0.05670876,124.17,124.16,8.0547]
[1742296225552,0.05670876,124.17,124.15,273.8351]
[1742296226258,0.05670876,124.17,124.16,8.0547]
[1742296232264,0.05670876,124.17,124.15,8.0551]
[1742296232568,0.05670876,124.17,124.14,0.05723732]
[1742296232963,0.05670876,124.17,124.16,8.0547]
[1742296239162,29.12,124.21,124.19,8.0523]
[1742296239366,42.57264796,124.22,124.19,8.0523]
[1742296239766,13.45264796,124.22,124.17,13.45264796]
[1742296239969,42.57264796,124.23,124.19,13.45264796]
[1742296240372,0.06181367,124.22,124.2,0.06101297]
[1742296240573,13.51446163,124.22,124.2,0.06101297]
[1742296240974,13.51446163,124.22,124.21,8.0515]
[1742296241174,0.06181367,124.22,124.21,8.0515]
[1742296247977,0.06181367,124.22,124.2,8.11271297]
[1742296248479,8.11321367,124.22,124.2,0.06101297]
[1742296249380,0.06181367,124.22,124.2,0.06101297]
[1742296249973,8.11311367,124.22,124.2,8.11281297]
[1742296250375,0.06181367,124.22,124.2,0.06101297]
[1742296251679,0.06181367,124.22,124.2,8.11251297]
[1742296251984,8.11271367,124.22,124.2,8.11251297]
[1742296252383,8.11271367,124.22,124.2,0.06101297]
[1742296253084,0.06181367,124.22,124.2,8.11281297]
[1742296253585,8.11271367,124.22,124.2,8.11281297]
[1742296254284,0.06181367,124.22,124.2,8.11281297]
[1742296255286,8.11261367,124.22,124.2,8.11281297]
[1742296255685,8.11261367,124.22,124.2,0.06101297]
[1742296256986,8.11261367,124.22,124.2,8.11311297]
[1742296257383,8.0515,124.21,124.2,0.06101297]
[1742296257583,0.06181367,124.22,124.2,0.06101297]
[1742296257983,8.11291367,124.22,124.2,0.06101297]
[1742296258183,0.06181367,124.22,124.2,0.06101297]
[1742296259286,0.06181367,124.22,124.21,8.0515]
[1742296261589,13.45264796,124.26,124.24,8.0495]
[1742296261784,13.45264796,124.26,124.21,13.45264796]
[1742296262488,11.10754028,124.27,124.23,13.45264796]
[1742296262690,0.0541447,124.25,124.23,42.35264796]
[1742296262991,0.0541447,124.25,124.23,308.03264796]
[1742296263387,0.0541447,124.25,124.24,8.0495]
[1742296263688,44.43016114,124.28,124.24,13.45264796]
[1742296263884,44.43016114,124.28,124.27,8.0476]
[1742296264888,44.43016114,124.28,124.25,28.88]
[1742296264889,44.43016114,124.28,124.26,0.0565481]
[1742296265483,8.0472,124.28,124.26,0.0565481]
[1742296265681,0.04987034,124.29,124.26,0.0565481]
[1742296266392,8.09647034,124.29,124.26,8.1042481]
[1742296266591,8.09647034,124.29,124.26,0.0565481]
[1742296266891,8.09647034,124.29,124.26,8.1043481]
[1742296267386,8.047,124.28,124.26,8.1043481]
[1742296268193,8.09657034,124.29,124.26,8.1043481]
[1742296268590,8.09657034,124.29,124.27,8.0476]
[1742296268986,0.04987034,124.29,124.26,0.0565481]
[1742296269287,0.04987034,124.29,124.27,8.0476]
[1742296269493,0.04987034,124.29,124.27,28.86]
[1742296270884,0.04987034,124.29,124.28,8.0469]
[1742296273488,0.04987034,124.29,124.27,36.9072]
[1742296274092,0.04987034,124.29,124.28,8.0469]
[1742296277902,13.45264796,124.35,124.31,8.0448]
[1742296278203,42.29264796,124.35,124.3,13.45264796]